[Event "Late-Titled-Tuesday-Blitz-August-29-2023"]
[Site "Chess.com"]
[Date "2023.08.29"]
[Round "3"]
[White "ahkashefi2800"]
[Black "Levanzovsky"]
[Result "1-0"]
[WhiteElo "2567"]
[BlackElo "2396"]
[TimeControl "180+1"]
[EndTime "14:26:06 PDT"]
[Termination "ahkashefi2800 won on time"]

1. d3 {[%clk 0:02:56.7]} 1... Nf6 {[%clk 0:02:58.1]} 2. Nf3 {[%clk 0:02:57.6]}
2... g6 {[%clk 0:02:58.5]} 3. g3 {[%clk 0:02:58.1]} 3... Bg7 {[%clk 0:02:58.9]}
4. Bg2 {[%clk 0:02:58.5]} 4... O-O {[%clk 0:02:59.3]} 5. O-O {[%clk 0:02:58.9]}
5... c5 {[%clk 0:02:55.9]} 6. Nc3 {[%clk 0:02:59]} 6... Nc6 {[%clk 0:02:56]} 7.
e4 {[%clk 0:02:59.5]} 7... d6 {[%clk 0:02:53.4]} 8. Bg5 {[%clk 0:02:58.3]} 8...
Rb8 {[%clk 0:02:51]} 9. Qd2 {[%clk 0:02:55.4]} 9... b5 {[%clk 0:02:49.7]} 10.
Bh6 {[%clk 0:02:55.2]} 10... b4 {[%clk 0:02:49.1]} 11. Ne2 {[%clk 0:02:54.6]}
11... a5 {[%clk 0:02:34.1]} 12. Bxg7 {[%clk 0:02:54.3]} 12... Kxg7 {[%clk
0:02:33.8]} 13. h4 {[%clk 0:02:53.9]} 13... a4 {[%clk 0:02:25]} 14. Rae1 {[%clk
0:02:50.2]} 14... b3 {[%clk 0:02:18]} 15. axb3 {[%clk 0:02:49.3]} 15... axb3
{[%clk 0:02:18.6]} 16. c3 {[%clk 0:02:50.2]} 16... Ba6 {[%clk 0:02:15.1]} 17.
Nc1 {[%clk 0:02:49.9]} 17... Nd7 {[%clk 0:01:51.4]} 18. h5 {[%clk 0:02:32]}
18... Nde5 {[%clk 0:00:59.7]} 19. Nxe5 {[%clk 0:02:31.1]} 19... dxe5 {[%clk
0:00:58.5]} 20. Re3 {[%clk 0:02:25.8]} 20... Qd6 {[%clk 0:00:57.9]} 21. Bf3
{[%clk 0:02:24.5]} 21... c4 {[%clk 0:00:49.7]} 22. Be2 {[%clk 0:02:20.7]} 22...
Rfd8 {[%clk 0:00:46]} 23. Rd1 {[%clk 0:02:18.2]} 23... cxd3 {[%clk 0:00:42.4]}
24. Bxd3 {[%clk 0:02:17.8]} 24... Na5 {[%clk 0:00:41.7]} 25. Qe2 {[%clk
0:02:14.7]} 25... Nc4 {[%clk 0:00:28.6]} 26. Rf3 {[%clk 0:02:14.6]} 26... Qc5
{[%clk 0:00:20.4]} 27. Kg2 {[%clk 0:02:11.5]} 27... Rb6 {[%clk 0:00:20.2]} 28.
Rh1 {[%clk 0:02:04.3]} 28... g5 {[%clk 0:00:17.9]} 29. h6+ {[%clk 0:02:03.9]}
29... Rxh6 {[%clk 0:00:18.1]} 30. Rxf7+ {[%clk 0:02:01.8]} 30... Kxf7 {[%clk
0:00:17.8]} 31. Rxh6 {[%clk 0:02:01.6]} 31... Kg7 {[%clk 0:00:14.4]} 32. Rxa6
{[%clk 0:02:01]} 32... Nxb2 {[%clk 0:00:12.4]} 33. Qxb2 {[%clk 0:02:00.1]} 33...
Qxc3 {[%clk 0:00:13.3]} 34. Qxc3 {[%clk 0:01:59.4]} 1-0

[Event "Late-Titled-Tuesday-Blitz-August-29-2023"]
[Site "Chess.com"]
[Date "2023.08.29"]
[Round "3"]
[White "DampFalcon"]
[Black "dosto07"]
[Result "0-1"]
[WhiteElo "2344"]
[BlackElo "2500"]
[TimeControl "180+1"]
[EndTime "14:26:15 PDT"]
[Termination "dosto07 won on time"]

1. e4 {[%clk 0:03:00.9]} 1... e5 {[%clk 0:02:58.4]} 2. Nf3 {[%clk 0:03:00.1]}
2... Nc6 {[%clk 0:02:57.1]} 3. d4 {[%clk 0:03:00.5]} 3... exd4 {[%clk 0:02:57]}
4. Nxd4 {[%clk 0:03:01.4]} 4... Nf6 {[%clk 0:02:57.3]} 5. Nxc6 {[%clk
0:03:00.9]} 5... bxc6 {[%clk 0:02:57.9]} 6. e5 {[%clk 0:03:01.5]} 6... Qe7
{[%clk 0:02:58.4]} 7. Qe2 {[%clk 0:03:02.2]} 7... Nd5 {[%clk 0:02:58.8]} 8. h4
{[%clk 0:03:02.7]} 8... d6 {[%clk 0:02:58.3]} 9. c4 {[%clk 0:03:01.3]} 9... Nb6
{[%clk 0:02:57.7]} 10. exd6 {[%clk 0:02:47.8]} 10... Qxe2+ {[%clk 0:02:56.9]}
11. Bxe2 {[%clk 0:02:47.6]} 11... Bxd6 {[%clk 0:02:57.8]} 12. Nc3 {[%clk
0:02:44.6]} 12... Be5 {[%clk 0:02:55.9]} 13. Be3 {[%clk 0:02:34.8]} 13... Be6
{[%clk 0:02:54.5]} 14. c5 {[%clk 0:02:20]} 14... Nd5 {[%clk 0:02:45.2]} 15. Nxd5
{[%clk 0:02:16]} 15... Bxd5 {[%clk 0:02:43.7]} 16. O-O-O {[%clk 0:02:07.4]}
16... O-O {[%clk 0:02:30.1]} 17. Rhg1 {[%clk 0:01:30.6]} 17... Rfe8 {[%clk
0:02:26.2]} 18. b3 {[%clk 0:01:20.6]} 18... a5 {[%clk 0:02:26]} 19. Kb1 {[%clk
0:00:55.2]} 19... a4 {[%clk 0:02:20.9]} 20. b4 {[%clk 0:00:53.2]} 20... a3
{[%clk 0:02:20.7]} 21. Bf3 {[%clk 0:00:23.8]} 21... Bxf3 {[%clk 0:02:17.8]} 22.
gxf3 {[%clk 0:00:24.7]} 22... Ra4 {[%clk 0:02:16.9]} 23. Bd2 {[%clk 0:00:23.7]}
23... Bd4 {[%clk 0:02:10.3]} 24. Rge1 {[%clk 0:00:10.9]} 24... Rb8 {[%clk
0:02:03.1]} 25. Re2 {[%clk 0:00:07.9]} 25... Bxc5 {[%clk 0:02:00.5]} 26. Kc2
{[%clk 0:00:06.2]} 26... Bd6 {[%clk 0:01:49.4]} 27. Rde1 {[%clk 0:00:05.8]}
27... Raa8 {[%clk 0:01:49]} 28. Re4 {[%clk 0:00:04.1]} 28... h5 {[%clk
0:01:44.8]} 29. Rc4 {[%clk 0:00:03.6]} 29... Rb6 {[%clk 0:01:43]} 30. Ree4
{[%clk 0:00:01.1]} 30... Rab8 {[%clk 0:01:42.6]} 31. Bc3 {[%clk 0:00:01.5]}
31... Kh7 {[%clk 0:01:39.2]} 32. Kb3 {[%clk 0:00:02]} 32... c5 {[%clk
0:01:38.3]} 0-1

[Event "Late-Titled-Tuesday-Blitz-August-29-2023"]
[Site "Chess.com"]
[Date "2023.08.29"]
[Round "3"]
[White "artin10862"]
[Black "miraitrunks"]
[Result "1-0"]
[WhiteElo "2833"]
[BlackElo "2030"]
[TimeControl "180+1"]
[EndTime "14:26:20 PDT"]
[Termination "artin10862 won on time"]

1. e4 {[%clk 0:03:00.9]} 1... c5 {[%clk 0:02:59.5]} 2. Nf3 {[%clk 0:03:01.4]}
2... Nc6 {[%clk 0:02:59.8]} 3. Bb5 {[%clk 0:03:01.3]} 3... d6 {[%clk 0:02:58.8]}
4. O-O {[%clk 0:02:57.2]} 4... Nf6 {[%clk 0:02:58.5]} 5. Re1 {[%clk 0:02:57.3]}
5... a6 {[%clk 0:02:58.3]} 6. Bxc6+ {[%clk 0:02:46.9]} 6... bxc6 {[%clk
0:02:59]} 7. e5 {[%clk 0:02:47.8]} 7... Nd5 {[%clk 0:02:43.2]} 8. Na3 {[%clk
0:02:44.8]} 8... Bg4 {[%clk 0:02:20.4]} 9. Nc4 {[%clk 0:02:38.7]} 9... e6 {[%clk
0:02:13.4]} 10. b3 {[%clk 0:02:21]} 10... Be7 {[%clk 0:02:05.4]} 11. Ba3 {[%clk
0:02:07.9]} 11... O-O {[%clk 0:01:53.7]} 12. h3 {[%clk 0:02:01.7]} 12... Bh5
{[%clk 0:01:49.8]} 13. exd6 {[%clk 0:02:01.4]} 13... Bxd6 {[%clk 0:01:49.3]} 14.
d4 {[%clk 0:02:01.6]} 14... Nc3 {[%clk 0:01:09.7]} 15. Qd3 {[%clk 0:01:58.1]}
15... Nb5 {[%clk 0:00:37.8]} 16. Bxc5 {[%clk 0:01:54]} 16... Bxc5 {[%clk
0:00:31]} 17. dxc5 {[%clk 0:01:53.5]} 17... Qf6 {[%clk 0:00:31.1]} 18. Nfe5
{[%clk 0:01:50.9]} 18... Rfd8 {[%clk 0:00:25.4]} 19. Qe3 {[%clk 0:01:50.4]}
19... Nd4 {[%clk 0:00:17.5]} 20. Rac1 {[%clk 0:01:48.2]} 20... Rd5 {[%clk
0:00:14.9]} 21. Nb6 {[%clk 0:01:42.9]} 21... Rad8 {[%clk 0:00:09]} 22. Nxd5
{[%clk 0:01:43]} 22... Rxd5 {[%clk 0:00:09.9]} 23. c4 {[%clk 0:01:36.7]} 23...
Rxe5 {[%clk 0:00:06.4]} 24. Qxe5 {[%clk 0:01:35.9]} 24... Qg6 {[%clk 0:00:02.1]}
25. Qxd4 {[%clk 0:01:34.6]} 1-0

[Event "Late-Titled-Tuesday-Blitz-August-29-2023"]
[Site "Chess.com"]
[Date "2023.08.29"]
[Round "3"]
[White "cassoulet"]
[Black "sergoy"]
[Result "0-1"]
[WhiteElo "2727"]
[BlackElo "2964"]
[TimeControl "180+1"]
[EndTime "14:26:23 PDT"]
[Termination "sergoy won by resignation"]

1. d4 {[%clk 0:03:00.9]} 1... Nf6 {[%clk 0:02:59.7]} 2. Bg5 {[%clk 0:03:00.1]}
2... Ne4 {[%clk 0:02:59.1]} 3. Bh4 {[%clk 0:02:59.9]} 3... c5 {[%clk 0:02:59.8]}
4. Nd2 {[%clk 0:02:55.7]} 4... Nxd2 {[%clk 0:02:55.8]} 5. Qxd2 {[%clk
0:02:56.6]} 5... cxd4 {[%clk 0:02:56.3]} 6. Qxd4 {[%clk 0:02:55.7]} 6... Nc6
{[%clk 0:02:56.9]} 7. Qd2 {[%clk 0:02:55.4]} 7... g6 {[%clk 0:02:54.2]} 8. O-O-O
{[%clk 0:02:51.7]} 8... Bg7 {[%clk 0:02:54.4]} 9. e4 {[%clk 0:02:50]} 9... Qb6
{[%clk 0:02:52.3]} 10. c3 {[%clk 0:02:49.5]} 10... d6 {[%clk 0:02:52.5]} 11. Nf3
{[%clk 0:02:48.8]} 11... Be6 {[%clk 0:02:52.7]} 12. Kb1 {[%clk 0:02:42.2]} 12...
Qa5 {[%clk 0:02:52.4]} 13. c4 {[%clk 0:02:37.9]} 13... Qxd2 {[%clk 0:02:49.8]}
14. Nxd2 {[%clk 0:02:35.5]} 14... a5 {[%clk 0:02:45.9]} 15. f3 {[%clk
0:02:32.4]} 15... a4 {[%clk 0:02:46]} 16. Bd3 {[%clk 0:02:29.6]} 16... Nb4
{[%clk 0:02:44.6]} 17. Be2 {[%clk 0:02:28.5]} 17... a3 {[%clk 0:02:43.7]} 18. b3
{[%clk 0:02:27.6]} 18... f5 {[%clk 0:02:24.8]} 19. Nf1 {[%clk 0:02:19.5]} 19...
f4 {[%clk 0:02:17.9]} 20. g4 {[%clk 0:01:54.9]} 20... Kf7 {[%clk 0:02:13.2]} 21.
Bg5 {[%clk 0:01:43.8]} 21... Be5 {[%clk 0:02:10.2]} 22. Nd2 {[%clk 0:01:36.5]}
22... Rhc8 {[%clk 0:02:05.8]} 23. Rc1 {[%clk 0:01:32.3]} 23... Nc6 {[%clk
0:02:04.3]} 24. h4 {[%clk 0:01:24.5]} 24... Nd4 {[%clk 0:01:51.3]} 25. Bd3
{[%clk 0:01:24.3]} 25... b5 {[%clk 0:01:46.7]} 26. h5 {[%clk 0:01:23.9]} 26...
bxc4 {[%clk 0:01:44.6]} 27. hxg6+ {[%clk 0:01:21.1]} 27... Kxg6 {[%clk
0:01:42.9]} 28. Rh6+ {[%clk 0:00:59.5]} 28... Kxg5 {[%clk 0:01:43]} 29. Rch1
{[%clk 0:00:59.5]} 29... Bf7 {[%clk 0:01:43.6]} 30. Bxc4 {[%clk 0:00:59.6]}
30... Bg6 {[%clk 0:01:43]} 31. R6h3 {[%clk 0:00:38.4]} 31... Rab8 {[%clk
0:01:40.8]} 32. Kc1 {[%clk 0:00:32.5]} 32... Nxb3+ {[%clk 0:01:36.9]} 33. axb3
{[%clk 0:00:24.7]} 33... a2 {[%clk 0:01:37.3]} 34. Kc2 {[%clk 0:00:23.4]} 34...
a1=Q {[%clk 0:01:37.3]} 35. Rxa1 {[%clk 0:00:24]} 35... Bxa1 {[%clk 0:01:37.9]}
36. Kd3 {[%clk 0:00:23.9]} 36... Be5 {[%clk 0:01:37.8]} 37. Nb1 {[%clk
0:00:20.7]} 37... Ra8 {[%clk 0:01:37.4]} 38. Bd5 {[%clk 0:00:19.4]} 38... Ra1
{[%clk 0:01:36.5]} 39. Nd2 {[%clk 0:00:18.6]} 39... Rc3+ {[%clk 0:01:36.3]} 40.
Ke2 {[%clk 0:00:19.1]} 40... Ra2 {[%clk 0:01:36.6]} 0-1

[Event "Late-Titled-Tuesday-Blitz-August-29-2023"]
[Site "Chess.com"]
[Date "2023.08.29"]
[Round "3"]
[White "Jumbo"]
[Black "Athanasios2"]
[Result "1-0"]
[WhiteElo "2952"]
[BlackElo "2713"]
[TimeControl "180+1"]
[EndTime "14:26:24 PDT"]
[Termination "Jumbo won by resignation"]

1. Nf3 {[%clk 0:03:00.9]} 1... d5 {[%clk 0:02:59.9]} 2. e3 {[%clk 0:03:00.3]}
2... Nf6 {[%clk 0:02:59.7]} 3. c4 {[%clk 0:03:00.3]} 3... c6 {[%clk 0:02:56.9]}
4. Nc3 {[%clk 0:02:59]} 4... g6 {[%clk 0:02:57.5]} 5. d4 {[%clk 0:02:57.6]} 5...
Bg7 {[%clk 0:02:58]} 6. Bd3 {[%clk 0:02:56.6]} 6... O-O {[%clk 0:02:58.4]} 7. h3
{[%clk 0:02:55.7]} 7... Nbd7 {[%clk 0:02:56]} 8. O-O {[%clk 0:02:55.3]} 8... Re8
{[%clk 0:02:53.6]} 9. Qb3 {[%clk 0:02:51.7]} 9... dxc4 {[%clk 0:02:50.2]} 10.
Bxc4 {[%clk 0:02:51.4]} 10... e6 {[%clk 0:02:50.8]} 11. a4 {[%clk 0:02:44.1]}
11... Qe7 {[%clk 0:02:46.1]} 12. e4 {[%clk 0:02:40.7]} 12... b6 {[%clk
0:02:32.8]} 13. Bf4 {[%clk 0:02:39.8]} 13... Bb7 {[%clk 0:02:31.3]} 14. Rfe1
{[%clk 0:02:33.9]} 14... Nf8 {[%clk 0:02:22.5]} 15. a5 {[%clk 0:02:23.5]} 15...
b5 {[%clk 0:02:20.7]} 16. a6 {[%clk 0:02:24]} 16... Bc8 {[%clk 0:02:00.9]} 17.
Bf1 {[%clk 0:02:21.8]} 17... N6d7 {[%clk 0:01:57.2]} 18. d5 {[%clk 0:02:10.3]}
18... Nc5 {[%clk 0:01:55.1]} 19. Qa3 {[%clk 0:02:03.4]} 19... cxd5 {[%clk
0:01:42.7]} 20. exd5 {[%clk 0:02:03]} 20... b4 {[%clk 0:01:27]} 21. Qxb4 {[%clk
0:01:59.2]} 21... Nfd7 {[%clk 0:01:20.3]} 22. Nb5 {[%clk 0:01:41.1]} 22... e5
{[%clk 0:01:19.4]} 23. d6 {[%clk 0:01:40.7]} 23... Qf6 {[%clk 0:01:17.8]} 24.
Bg5 {[%clk 0:01:40.4]} 24... Qf5 {[%clk 0:01:17.4]} 25. Nbd4 {[%clk 0:01:22.8]}
25... Nd3 {[%clk 0:01:05]} 26. Qc3 {[%clk 0:01:02.5]} 26... Nxe1 {[%clk
0:00:45.5]} 27. Nxf5 {[%clk 0:01:00.5]} 27... Nxf3+ {[%clk 0:00:44.5]} 28. Qxf3
{[%clk 0:00:58.6]} 28... e4 {[%clk 0:00:44.9]} 29. Ne7+ {[%clk 0:00:58.6]} 1-0

[Event "Late-Titled-Tuesday-Blitz-August-29-2023"]
[Site "Chess.com"]
[Date "2023.08.29"]
[Round "3"]
[White "guillembaches"]
[Black "Njal28"]
[Result "0-1"]
[WhiteElo "2452"]
[BlackElo "3016"]
[TimeControl "180+1"]
[EndTime "14:26:26 PDT"]
[Termination "Njal28 won on time"]

1. e4 {[%clk 0:03:00.9]} 1... c5 {[%clk 0:02:51.5]} 2. Nf3 {[%clk 0:03:01]} 2...
d6 {[%clk 0:02:49.8]} 3. d4 {[%clk 0:03:01.3]} 3... cxd4 {[%clk 0:02:45.6]} 4.
Nxd4 {[%clk 0:03:01.5]} 4... Nf6 {[%clk 0:02:46]} 5. Nc3 {[%clk 0:03:02.1]} 5...
a6 {[%clk 0:02:44.8]} 6. Be3 {[%clk 0:03:02.2]} 6... Ng4 {[%clk 0:02:41.8]} 7.
Bc1 {[%clk 0:03:01.9]} 7... Nf6 {[%clk 0:02:42.2]} 8. Be3 {[%clk 0:03:01.4]}
8... e5 {[%clk 0:02:41.9]} 9. Nb3 {[%clk 0:03:01.5]} 9... Be7 {[%clk 0:02:42]}
10. f3 {[%clk 0:03:00.7]} 10... Be6 {[%clk 0:02:39.5]} 11. Qd2 {[%clk
0:03:00.6]} 11... h5 {[%clk 0:02:40]} 12. Nd5 {[%clk 0:02:59.7]} 12... Bxd5
{[%clk 0:02:40.5]} 13. exd5 {[%clk 0:02:59.8]} 13... Nbd7 {[%clk 0:02:40.9]} 14.
O-O-O {[%clk 0:02:54.6]} 14... Qc7 {[%clk 0:02:32.3]} 15. Kb1 {[%clk 0:02:49.7]}
15... Nb6 {[%clk 0:02:29.8]} 16. Bxb6 {[%clk 0:02:30.8]} 16... Qxb6 {[%clk
0:02:30.7]} 17. g3 {[%clk 0:02:26.5]} 17... O-O {[%clk 0:02:23.2]} 18. f4 {[%clk
0:02:21.2]} 18... Ne4 {[%clk 0:02:22.5]} 19. Qe2 {[%clk 0:02:11.8]} 19... Nf2
{[%clk 0:02:21.9]} 20. Bg2 {[%clk 0:02:01.2]} 20... Bf6 {[%clk 0:02:17.7]} 21.
Qxh5 {[%clk 0:01:52.6]} 21... g6 {[%clk 0:02:08.9]} 22. Qe2 {[%clk 0:01:49.9]}
22... exf4 {[%clk 0:02:04.2]} 23. gxf4 {[%clk 0:01:48.5]} 23... Rfe8 {[%clk
0:01:59.6]} 24. Qf3 {[%clk 0:01:40.8]} 24... Nxh1 {[%clk 0:01:56.9]} 25. Rxh1
{[%clk 0:01:33.2]} 25... Qe3 {[%clk 0:01:52.9]} 26. Qg4 {[%clk 0:01:30.6]} 26...
Qf2 {[%clk 0:01:45.9]} 27. a3 {[%clk 0:01:11.5]} 27... Re2 {[%clk 0:01:24]} 0-1

[Event "Late-Titled-Tuesday-Blitz-August-29-2023"]
[Site "Chess.com"]
[Date "2023.08.29"]
[Round "3"]
[White "Joshukid"]
[Black "rachidhuilda"]
[Result "1/2-1/2"]
[WhiteElo "2544"]
[BlackElo "2351"]
[TimeControl "180+1"]
[EndTime "14:26:28 PDT"]
[Termination "Game drawn by agreement"]

1. Nf3 {[%clk 0:03:00.9]} 1... d5 {[%clk 0:02:59.3]} 2. c4 {[%clk 0:02:35]} 2...
c6 {[%clk 0:02:59.4]} 3. b3 {[%clk 0:02:33.7]} 3... Nf6 {[%clk 0:02:59]} 4. Bb2
{[%clk 0:02:33.9]} 4... Bf5 {[%clk 0:02:59.5]} 5. g3 {[%clk 0:02:33.1]} 5... e6
{[%clk 0:02:59.5]} 6. Bg2 {[%clk 0:02:32.9]} 6... Nbd7 {[%clk 0:03:00]} 7. O-O
{[%clk 0:02:32.3]} 7... h6 {[%clk 0:02:59.5]} 8. Nc3 {[%clk 0:02:26.1]} 8... Be7
{[%clk 0:02:58.1]} 9. Re1 {[%clk 0:02:17.2]} 9... O-O {[%clk 0:02:56]} 10. d3
{[%clk 0:02:16.1]} 10... Bh7 {[%clk 0:02:54.2]} 11. e4 {[%clk 0:02:14.9]} 11...
dxe4 {[%clk 0:02:46.8]} 12. dxe4 {[%clk 0:02:14.4]} 12... Nc5 {[%clk 0:02:46.7]}
13. Ne5 {[%clk 0:02:09.8]} 13... Nfd7 {[%clk 0:02:39.3]} 14. Nxd7 {[%clk
0:01:59.4]} 14... Qxd7 {[%clk 0:02:38.8]} 15. Qxd7 {[%clk 0:01:50.6]} 15... Nxd7
{[%clk 0:02:38.2]} 16. Rad1 {[%clk 0:01:51.2]} 16... Rfd8 {[%clk 0:02:38.5]} 17.
Kf1 {[%clk 0:01:36.1]} 17... Nc5 {[%clk 0:02:38.5]} 18. Ke2 {[%clk 0:01:35.2]}
18... Kf8 {[%clk 0:02:28.9]} 19. f3 {[%clk 0:01:28.3]} 19... Ke8 {[%clk
0:02:23.6]} 20. Rxd8+ {[%clk 0:01:22.4]} 20... Rxd8 {[%clk 0:02:23.2]} 21. Rd1
{[%clk 0:01:23.3]} 21... Rxd1 {[%clk 0:02:20.5]} 22. Nxd1 {[%clk 0:01:24.2]}
22... f6 {[%clk 0:02:18.1]} 23. Bd4 {[%clk 0:01:20.2]} 23... e5 {[%clk
0:02:16.6]} 24. Be3 {[%clk 0:01:15.6]} 24... a6 {[%clk 0:02:08.8]} 25. Nc3
{[%clk 0:01:11]} 25... Bg8 {[%clk 0:02:06.2]} 26. f4 {[%clk 0:01:07.2]} 26...
Ne6 {[%clk 0:01:51.4]} 27. f5 {[%clk 0:00:53.6]} 27... Nd4+ {[%clk 0:01:46.4]}
28. Bxd4 {[%clk 0:00:51.9]} 28... exd4 {[%clk 0:01:46.6]} 29. Nd1 {[%clk
0:00:50.9]} 29... c5 {[%clk 0:01:40.3]} 30. Kd3 {[%clk 0:00:50.6]} 30... b5
{[%clk 0:01:38.3]} 31. Nf2 {[%clk 0:00:45]} 31... bxc4+ {[%clk 0:01:36.3]} 32.
bxc4 {[%clk 0:00:45]} 32... Kd7 {[%clk 0:01:33.4]} 33. Nh3 {[%clk 0:00:45]}
33... Bd6 {[%clk 0:01:32.5]} 34. Nf4 {[%clk 0:00:40.2]} 34... Bxf4 {[%clk
0:01:30.3]} 35. gxf4 {[%clk 0:00:41]} 35... Kd6 {[%clk 0:01:29.6]} 36. Bf3
{[%clk 0:00:41]} 36... Bf7 {[%clk 0:01:29.5]} 37. Bd1 {[%clk 0:00:41.1]} 37...
Be8 {[%clk 0:01:28.1]} 38. h4 {[%clk 0:00:38.2]} 38... Bd7 {[%clk 0:01:27.6]}
39. Bh5 {[%clk 0:00:31.4]} 39... Ba4 {[%clk 0:01:22.5]} 1/2-1/2

[Event "Late-Titled-Tuesday-Blitz-August-29-2023"]
[Site "Chess.com"]
[Date "2023.08.29"]
[Round "3"]
[White "tptagain"]
[Black "SaqoChess_Twitch"]
[Result "1-0"]
[WhiteElo "2891"]
[BlackElo "2630"]
[TimeControl "180+1"]
[EndTime "14:26:31 PDT"]
[Termination "tptagain won by resignation"]

1. Nf3 {[%clk 0:03:00.9]} 1... d5 {[%clk 0:03:00.2]} 2. e3 {[%clk 0:03:00.7]}
2... Nf6 {[%clk 0:02:57.8]} 3. c4 {[%clk 0:03:01.2]} 3... e6 {[%clk 0:02:57.7]}
4. Nc3 {[%clk 0:02:58.6]} 4... Be7 {[%clk 0:02:57.8]} 5. b3 {[%clk 0:02:58.8]}
5... O-O {[%clk 0:02:58.4]} 6. Bb2 {[%clk 0:02:59.2]} 6... c5 {[%clk 0:02:58.9]}
7. cxd5 {[%clk 0:02:59.7]} 7... Nxd5 {[%clk 0:02:58.3]} 8. Qc2 {[%clk
0:02:59.5]} 8... h6 {[%clk 0:02:49.1]} 9. h4 {[%clk 0:02:58.5]} 9... Nc6 {[%clk
0:02:49.2]} 10. g4 {[%clk 0:02:56.6]} 10... f5 {[%clk 0:02:29.2]} 11. gxf5
{[%clk 0:02:51]} 11... Nxc3 {[%clk 0:02:23.9]} 12. Bxc3 {[%clk 0:02:43.2]} 12...
Rxf5 {[%clk 0:02:22.6]} 13. Qe4 {[%clk 0:02:17.8]} 13... Qd5 {[%clk 0:02:21.7]}
14. Bd3 {[%clk 0:02:18.1]} 14... Qxe4 {[%clk 0:02:04.7]} 15. Bxe4 {[%clk
0:02:19]} 15... Rf8 {[%clk 0:02:02.7]} 16. Rg1 {[%clk 0:02:10.1]} 16... Bf6
{[%clk 0:02:01.4]} 17. Bxf6 {[%clk 0:02:05.1]} 17... Rxf6 {[%clk 0:02:02.3]} 18.
Rc1 {[%clk 0:02:05.3]} 18... Nb4 {[%clk 0:01:43.4]} 19. Ne5 {[%clk 0:02:05.6]}
19... Nxa2 {[%clk 0:01:36.8]} 20. Rxc5 {[%clk 0:02:05.1]} 20... Nb4 {[%clk
0:01:37.2]} 21. Rc7 {[%clk 0:02:04]} 21... g5 {[%clk 0:01:28.7]} 22. hxg5 {[%clk
0:02:03.1]} 22... hxg5 {[%clk 0:01:29.6]} 23. Rxg5+ {[%clk 0:02:01.4]} 23... Kf8
{[%clk 0:01:30.3]} 24. Rh5 {[%clk 0:01:53.2]} 24... Kg8 {[%clk 0:01:15.4]} 25.
Ng6 {[%clk 0:01:28.1]} 25... Rf7 {[%clk 0:00:57]} 26. Rxc8+ {[%clk 0:01:15.5]}
26... Rxc8 {[%clk 0:00:50.5]} 27. Rh8+ {[%clk 0:01:16]} 27... Kg7 {[%clk
0:00:47.8]} 28. Rxc8 {[%clk 0:01:16.9]} 28... a5 {[%clk 0:00:44.7]} 29. Ne5
{[%clk 0:01:16.7]} 29... Re7 {[%clk 0:00:43.2]} 30. f4 {[%clk 0:01:16.8]} 30...
b5 {[%clk 0:00:41.8]} 31. Ra8 {[%clk 0:01:15.1]} 31... a4 {[%clk 0:00:38.5]} 32.
bxa4 {[%clk 0:01:14.7]} 32... bxa4 {[%clk 0:00:39.4]} 33. Rxa4 {[%clk
0:01:14.5]} 33... Nd5 {[%clk 0:00:40]} 34. Bxd5 {[%clk 0:01:14.3]} 34... exd5
{[%clk 0:00:40.9]} 35. Rd4 {[%clk 0:01:14.5]} 35... Kf6 {[%clk 0:00:39.5]} 36.
Rxd5 {[%clk 0:01:14.6]} 36... Kf5 {[%clk 0:00:40.4]} 37. Ke2 {[%clk 0:01:14.7]}
37... Rh7 {[%clk 0:00:38.3]} 38. Nf3+ {[%clk 0:01:13.5]} 1-0

[Event "Late-Titled-Tuesday-Blitz-August-29-2023"]
[Site "Chess.com"]
[Date "2023.08.29"]
[Round "3"]
[White "rookoco"]
[Black "Firouzja2003"]
[Result "0-1"]
[WhiteElo "2688"]
[BlackElo "3100"]
[TimeControl "180+1"]
[EndTime "14:26:33 PDT"]
[Termination "Firouzja2003 won by checkmate"]

1. e4 {[%clk 0:02:56.8]} 1... c5 {[%clk 0:03:00.2]} 2. Nf3 {[%clk 0:02:56.3]}
2... d6 {[%clk 0:03:00.5]} 3. d4 {[%clk 0:02:55.9]} 3... cxd4 {[%clk 0:03:01.4]}
4. Nxd4 {[%clk 0:02:55.8]} 4... Nf6 {[%clk 0:03:02.1]} 5. Nc3 {[%clk 0:02:55.8]}
5... a6 {[%clk 0:03:02.8]} 6. Bd3 {[%clk 0:02:46.9]} 6... e5 {[%clk 0:02:53.1]}
7. Nde2 {[%clk 0:02:45.5]} 7... Be7 {[%clk 0:02:53.5]} 8. O-O {[%clk 0:02:42.7]}
8... O-O {[%clk 0:02:53.7]} 9. f4 {[%clk 0:02:42.7]} 9... Nc6 {[%clk 0:02:51.2]}
10. Kh1 {[%clk 0:02:37.1]} 10... b5 {[%clk 0:02:49.3]} 11. a3 {[%clk 0:02:31.2]}
11... Bb7 {[%clk 0:02:39]} 12. Nd5 {[%clk 0:02:24]} 12... exf4 {[%clk
0:02:29.6]} 13. Nexf4 {[%clk 0:02:02.5]} 13... Ne5 {[%clk 0:02:28.6]} 14. Be3
{[%clk 0:01:41.1]} 14... Bxd5 {[%clk 0:02:25.2]} 15. exd5 {[%clk 0:01:32.9]}
15... Re8 {[%clk 0:02:22.8]} 16. Bd4 {[%clk 0:01:31.8]} 16... Bf8 {[%clk
0:02:22.8]} 17. a4 {[%clk 0:01:04.9]} 17... b4 {[%clk 0:02:22.4]} 18. a5 {[%clk
0:01:04.9]} 18... g6 {[%clk 0:02:20.6]} 19. Qd2 {[%clk 0:00:59.5]} 19... Bh6
{[%clk 0:02:19.1]} 20. Qf2 {[%clk 0:00:46.7]} 20... Bg7 {[%clk 0:02:11.5]} 21.
Ra4 {[%clk 0:00:38.1]} 21... Nfg4 {[%clk 0:02:04.4]} 22. Qg3 {[%clk 0:00:35.6]}
22... Nxd3 {[%clk 0:02:04.1]} 23. Qxd3 {[%clk 0:00:30.4]} 23... Qh4 {[%clk
0:02:03.9]} 24. h3 {[%clk 0:00:08.9]} 24... Re1 {[%clk 0:02:04.3]} 25. Ra1
{[%clk 0:00:02.5]} 25... Rxa1 {[%clk 0:01:57.5]} 26. Rxa1 {[%clk 0:00:03.4]}
26... Re8 {[%clk 0:01:52.3]} 27. Rf1 {[%clk 0:00:02.9]} 27... Re1 {[%clk
0:01:52]} 28. Kg1 {[%clk 0:00:02.4]} 28... Qg3 {[%clk 0:01:16]} 29. Qxg3 {[%clk
0:00:02]} 29... Bxd4+ {[%clk 0:01:14.9]} 30. Kh1 {[%clk 0:00:02.5]} 30... Rxf1#
{[%clk 0:01:15.1]} 0-1